[Event "XX Gran Hotel Bali-B 2023"]
[Site "Benidorm"]
[Date "2023.12.05"]
[Round "6.9"]
[White "Bethencourt Hernandez, Alberto"]
[Black "Donate Moreno, David"]
[Result "1/2-1/2"]
[ECO "B28"]
[WhiteElo "1869"]
[BlackElo "1951"]
[Annotator "RC"]
[PlyCount "103"]
[EventDate "2023.12.02"]
[EventType "swiss"]
[EventCountry "ESP"]
[SourceTitle "playchess.com"]
[Source "ChessBase"]
[SourceQuality "1"]
[TimeControl "5400+30"]

1. e4 {[%emt 0:00:11]} c5 {[%emt 0:00:18]} 2. Nf3 {[%emt 0:00:08]} a6 {[%emt 0:00:23]} 3. c3 {[%emt 0:00:37]} e6 {[%emt 0:00:12]} 4. d4 {[%emt 0:00:15]} d5 {[%emt 0:00:11]} 5. Bd3 {[%emt 0:01:22]} dxe4 {[%emt 0:02:58]} 6. Bxe4 {[%emt 0:00:06]} Nf6 {[%emt 0:01:43]} 7. Bc2 {[%emt 0:00:19]} Nc6 {[%emt 0:03:35]} 8. a3 {[%emt 0:03:39]} h6 {[%emt 0:03:43]} 9. Bf4 {[%emt 0:05:19]} cxd4 {[%emt 0:07:10]} 10. cxd4 {[%emt 0:00:27]} Bd6 {[%emt 0:02:23]} 11. Be3 {[%emt 0:03:36]} O-O {[%emt 0:14:47]} 12. Nc3 {[%emt 0:09:46]} b5 {[%emt 0:08:41]} 13. Qd3 {[%emt 0:02:59]} Ne7 {[%emt 0:01:41]} 14. Ne4 {[%emt 0:01:44]} Ned5 {[%emt 0:01:33]} 15. g4 {[%emt 0:02:26]} Qc7 {[%emt 0:07:52]} 16. h4 {[%emt 0:15:14]} Bb7 {[%emt 0:08:22]} 17. Nxf6+ {[%emt 0:08:18]} Nxf6 {[%emt 0:00:59]} 18. Nd2 {[%emt 0:02:13]} Rfc8 {[%emt 0:03:57]} 19. O-O-O {[%emt 0:01:35]} Bxh1 {[%emt 0:10:12]} 20. Rxh1 {[%emt 0:02:43]} Qb7 {[%emt 0:01:23]} 21. Rg1 {[%emt 0:01:50]} Rc6 {[%emt 0:01:06]} 22. g5 {[%emt 0:03:30]} hxg5 {[%emt 0:01:19]} 23. Bxg5 {[%emt 0:02:38]} Bh2 {[%emt 0:01:53]} 24. Bxf6 {[%emt 0:04:05]} Rxc2+ {[%emt 0:00:08]} 25. Kxc2 {[%emt 0:00:07]} Qc7+ {[%emt 0:01:12]} 26. Kb1 {[%emt 0:01:25]} Bxg1 {[%emt 0:00:21]} 27. Be5 {[%emt 0:00:03]} Qd8 {[%emt 0:00:55]} 28. Qg3 {[%emt 0:02:14]} f6 {[%emt 0:00:14]} 29. Bf4 {[%emt 0:00:35]} Qxd4 {[%emt 0:02:33]} 30. Bh6 {[%emt 0:02:55]} g5 {[%emt 0:00:30]} 31. hxg5 {[%emt 0:04:49]} Qxf2 {[%emt 0:03:42]} 32. Qc7 {[%emt 0:00:40]} Ra7 {[%emt 0:01:56]} 33. Qc8+ {[%emt 0:01:29]} Kh7 {[%emt 0:00:30]} 34. Qxe6 {[%emt 0:00:14]} f5 {[%emt 0:05:01]} 35. Nb3 {[%emt 0:02:30]} Qf4 {[%emt 0:00:26]} 36. Qf6 {[%emt 0:03:24]} Qe4+ {[%emt 0:00:36]} 37. Ka2 {[%emt 0:00:16]} f4 {[%emt 0:00:11]} 38. Bf8 {[%emt 0:02:20]} a5 {[%emt 0:01:47]} 39. Nxa5 {[%emt 0:02:36]} Qg6 {[%emt 0:01:08]} 40. Qxf4 {[%emt 0:01:15]} Rf7 {[%emt 0:01:21]} 41. Qh4+ {[%emt 0:00:16]} Kg8 {[%emt 0:00:03]} 42. Bb4 {[%emt 0:01:07]} Rf1 {[%emt 0:00:20]} 43. Bc3 {[%emt 0:00:31]} Bb6 {[%emt 0:00:54]} 44. Qh8+ {[%emt 0:05:34]} Kf7 {[%emt 0:00:00]} 45. Bb4 {[%emt 0:00:37]} Qb1+ {[%emt 0:00:14]} 46. Kb3 {[%emt 0:00:05]} Qd3+ {[%emt 0:01:24]} 47. Ka2 {[%emt 0:00:50]} Bxa5 {[%emt 0:00:05]} 48. Qf8+ {[%emt 0:00:41]} Kg6 {[%emt 0:00:15]} 49. Qg8+ {[%emt 0:00:08]} Kh5 {[%emt 0:00:40]} 50. Bxa5 {[%emt 0:00:06]} Qb1+ {[%emt 0:00:53]} 51. Kb3 {[%emt 0:00:10]} Qd1+ {[%emt 0:00:13]} 52. Ka2 {[%emt 0:04:33]} 1/2-1/2

[Event "XX Gran Hotel Bali-B 2023"]
[Site "Benidorm"]
[Date "2023.12.05"]
[Round "6.10"]
[White "Tejedor Barber, Lorenzo"]
[Black "Giron Herranz, Juan"]
[Result "0-1"]
[ECO "B13"]
[WhiteElo "1951"]
[BlackElo "1846"]
[Annotator "NA RC"]
[PlyCount "74"]
[EventDate "2023.12.02"]
[EventType "swiss"]
[EventCountry "ESP"]
[SourceTitle "playchess.com"]
[Source "ChessBase"]
[SourceQuality "1"]
[TimeControl "5400+30"]

1. e4 {[%emt 0:06:49]} c6 {[%emt 0:00:04]} 2. d4 {[%emt 0:01:32]} d5 {[%emt 0:00:05]} 3. exd5 {[%emt 0:00:10]} cxd5 {[%emt 0:00:07]} 4. Bd3 {[%emt 0:00:19]} Nc6 {[%emt 0:00:21]} 5. c3 {[%emt 0:00:08]} Nf6 {[%emt 0:00:07]} 6. Bf4 {[%emt 0:00:06]} Bg4 {[%emt 0:00:46]} 7. Qb3 {[%emt 0:00:07]} Qd7 {[%emt 0:00:11]} 8. h3 {[%emt 0:00:47]} Bh5 {[%emt 0:00:22]} 9. Nd2 {[%emt 0:00:20]} e6 {[%emt 0:05:25]} 10. Ngf3 {[%emt 0:00:42]} a6 {[%emt 0:01:39]} 11. O-O {[%emt 0:02:39]} Be7 {[%emt 0:03:40]} 12. Rfe1 {[%emt 0:02:05]} O-O {[%emt 0:00:44]} 13. Re3 {[%emt 0:13:25]} b5 {[%emt 0:05:19]} 14. Ne5 {[%emt 0:05:31]} Qb7 {[%emt 0:02:16]} 15. Nxc6 {[%emt 0:00:38]} Qxc6 {[%emt 0:00:12]} 16. Nf3 {[%emt 0:00:23]} Nd7 {[%emt 0:14:18]} 17. a3 {[%emt 0:03:34]} Bg6 {[%emt 0:01:17]} 18. Bxg6 {[%emt 0:04:43]} hxg6 {[%emt 0:00:09]} 19. Rae1 {[%emt 0:00:34]} a5 {[%emt 0:02:27]} 20. Qd1 {[%emt 0:05:59]} b4 {[%emt 0:03:21]} 21. axb4 {[%emt 0:02:42]} axb4 {[%emt 0:00:20]} 22. h4 {[%emt 0:00:09]} bxc3 {[%emt 0:01:42]} 23. bxc3 {[%emt 0:00:02]} Ra3 {[%emt 0:12:52]} 24. Qd3 {[%emt 0:06:20]} Rc8 {[%emt 0:01:48]} 25. Rc1 {[%emt 0:00:10]} Bb4 {[%emt 0:02:49]} 26. h5 {[%emt 0:00:27]} gxh5 {[%emt 0:03:41]} 27. Ng5 {[%emt 0:00:33]} Nf6 {[%emt 0:00:44]} 28. Be5 {[%emt 0:00:59]} Rxc3 {[%emt 0:02:38]} 29. Rxc3 {[%emt 0:00:10]} Qxc3 {[%emt 0:00:19]} 30. Qe2 {[%emt 0:00:30]} Qc1+ {[%emt 0:01:29]} 31. Kh2 {[%emt 0:00:19]} Bd2 {[%emt 0:12:55]} 32. Bxf6 {[%emt 0:02:51]} Bxe3 {[%emt 0:00:16]} 33. fxe3 {[%emt 0:00:29]} gxf6 {[%emt 0:00:53]} 34. Nh3 {[%emt 0:00:01]} Qb1 {[%emt 0:01:56]} 35. Nf4 {[%emt 0:00:13]} Rc1 {[%emt 0:01:48]} 36. Nxh5 {[%emt 0:02:54]} Rh1+ {[%emt 0:00:20]} 37. Kg3 {[%emt 0:00:01]} Qg6+ {[%emt 0:19:40]} 0-1

[Event "XX Gran Hotel Bali-B 2023"]
[Site "Benidorm"]
[Date "2023.12.05"]
[Round "6.11"]
[White "Fernandez Lopez, Francisco J."]
[Black "Castillo Garcia, Adrian"]
[Result "1/2-1/2"]
[ECO "A52"]
[WhiteElo "1835"]
[BlackElo "1974"]
[Annotator "NA RC"]
[PlyCount "99"]
[EventDate "2023.12.02"]
[EventType "swiss"]
[EventCountry "ESP"]
[SourceTitle "playchess.com"]
[Source "ChessBase"]
[SourceQuality "1"]
[TimeControl "5400+30"]

1. d4 {[%emt 0:00:22]} Nf6 {[%emt 0:00:15]} 2. c4 {[%emt 0:00:27]} e5 {[%emt 0:02:35]} 3. dxe5 {[%emt 0:01:53]} Ng4 {[%emt 0:00:50]} 4. Nf3 {[%emt 0:01:03]} Bc5 {[%emt 0:02:02]} 5. e3 {[%emt 0:00:42]} Nc6 {[%emt 0:00:19]} 6. Be2 {[%emt 0:01:43]} O-O {[%emt 0:02:41]} 7. O-O {[%emt 0:01:00]} Ngxe5 {[%emt 0:01:26]} 8. Nc3 {[%emt 0:03:32]} a5 {[%emt 0:02:53]} 9. Nxe5 {[%emt 0:06:30]} Nxe5 {[%emt 0:00:09]} 10. Qd5 {[%emt 0:02:08]} d6 {[%emt 0:00:38]} 11. b3 {[%emt 0:03:28]} Be6 {[%emt 0:10:17]} 12. Qd2 {[%emt 0:02:02]} Qh4 {[%emt 0:04:56]} 13. Bb2 {[%emt 0:03:58]} c6 {[%emt 0:14:14]} 14. f4 {[%emt 0:07:43]} Qh6 {[%emt 0:09:10]} 15. Ne4 {[%emt 0:04:10]} Bb4 {[%emt 0:00:47]} 16. Qd4 {[%emt 0:20:23]} Ng4 {[%emt 0:13:48]} 17. Bxg4 {[%emt 0:01:33]} Bxg4 {[%emt 0:00:08]} 18. a3 {[%emt 0:00:22]} Bc5 {[%emt 0:08:10]} 19. Nxc5 {[%emt 0:00:46]} dxc5 {[%emt 0:00:04]} 20. Qxc5 {[%emt 0:00:40]} Rfd8 {[%emt 0:02:14]} 21. Bd4 {[%emt 0:01:09]} Qg6 {[%emt 0:03:06]} 22. f5 {[%emt 0:06:08]} Qg5 {[%emt 0:01:47]} 23. Kh1 {[%emt 0:03:38]} f6 {[%emt 0:00:37]} 24. Rf4 {[%emt 0:03:32]} Bh5 {[%emt 0:01:31]} 25. Raf1 {[%emt 0:02:37]} a4 {[%emt 0:00:17]} 26. bxa4 {[%emt 0:05:35]} Rxa4 {[%emt 0:00:23]} 27. Qb6 {[%emt 0:00:47]} Rd7 {[%emt 0:02:57]} 28. Qb3 {[%emt 0:01:05]} Ra8 {[%emt 0:00:28]} 29. Qc3 {[%emt 0:02:43]} Rad8 {[%emt 0:01:48]} 30. c5 {[%emt 0:01:00]} Rd5 {[%emt 0:02:18]} 31. Qe1 {[%emt 0:00:50]} Ra8 {[%emt 0:01:39]} 32. a4 {[%emt 0:02:13]} Rxa4 {[%emt 0:01:31]} 33. Bxf6 {[%emt 0:00:56]} Rxf4 {[%emt 0:00:07]} 34. Bxg5 {[%emt 0:00:33]} Rxf1+ {[%emt 0:00:05]} 35. Qxf1 {[%emt 0:00:23]} Rd1 {[%emt 0:00:05]} 36. Qxd1 {[%emt 0:00:22]} Bxd1 {[%emt 0:00:06]} 37. h3 {[%emt 0:01:06]} Kf7 {[%emt 0:00:06]} 38. Kg1 {[%emt 0:00:54]} h5 {[%emt 0:03:14]} 39. Kf2 {[%emt 0:01:01]} g6 {[%emt 0:00:44]} 40. f6 {[%emt 0:01:10]} Ke6 {[%emt 0:00:27]} 41. Kg3 {[%emt 0:00:31]} Bb3 {[%emt 0:00:53]} 42. Kf4 {[%emt 0:01:01]} Bd5 {[%emt 0:00:11]} 43. g4 {[%emt 0:02:51]} hxg4 {[%emt 0:00:08]} 44. Kxg4 {[%emt 0:00:15]} Ke5 {[%emt 0:01:08]} 45. Bh4 {[%emt 0:00:59]} Ke6 {[%emt 0:01:17]} 46. Kf4 {[%emt 0:01:08]} Kf7 {[%emt 0:00:09]} 47. Ke5 {[%emt 0:00:13]} Be6 {[%emt 0:00:11]} 48. Kd6 {[%emt 0:00:44]} Bxh3 {[%emt 0:00:39]} 49. Kc7 {[%emt 0:00:11]} Bg2 {[%emt 0:02:09]} 50. Kxb7 {[%emt 0:00:23]} 1/2-1/2

[Event "XX Gran Hotel Bali-B 2023"]
[Site "Benidorm"]
[Date "2023.12.05"]
[Round "6.12"]
[White "Ceinos Diez, Mariano"]
[Black "Perez Garcia, Juan Angel"]
[Result "0-1"]
[ECO "C46"]
[WhiteElo "1706"]
[BlackElo "1948"]
[Annotator "NA RC"]
[PlyCount "56"]
[EventDate "2023.12.02"]
[EventType "swiss"]
[EventCountry "ESP"]
[SourceTitle "playchess.com"]
[Source "ChessBase"]
[SourceQuality "1"]
[TimeControl "5400+30"]

1. e4 {[%emt 0:00:03]} e5 {[%emt 0:01:14]} 2. Nf3 {[%emt 0:00:12]} Nc6 {[%emt 0:00:08]} 3. Nc3 {[%emt 0:00:15]} g6 {[%emt 0:00:21]} 4. d4 {[%emt 0:00:40]} exd4 {[%emt 0:01:31]} 5. Nd5 {[%emt 0:00:27]} Bg7 {[%emt 0:03:23]} 6. Bg5 {[%emt 0:00:39]} Nce7 {[%emt 0:11:39]} 7. Bc4 {[%emt 0:04:03]} c6 {[%emt 0:01:41]} 8. Nxe7 {[%emt 0:01:27]} Nxe7 {[%emt 0:00:12]} 9. Nxd4 {[%emt 0:01:04]} Qa5+ {[%emt 0:00:42]} 10. Bd2 {[%emt 0:01:43]} Qc5 {[%emt 0:01:09]} 11. Bxf7+ {[%emt 0:05:14]} Kxf7 {[%emt 0:00:15]} 12. Bc3 {[%emt 0:01:29]} Rf8 {[%emt 0:01:07]} 13. Qd2 {[%emt 0:03:45]} Kg8 {[%emt 0:06:38]} 14. f4 {[%emt 0:04:51]} a5 {[%emt 0:02:07]} 15. O-O-O {[%emt 0:02:15]} b5 {[%emt 0:00:55]} 16. Qd3 {[%emt 0:06:03]} b4 {[%emt 0:02:45]} 17. Nb3 {[%emt 0:01:00]} Qb5 {[%emt 0:00:17]} 18. Qxb5 {[%emt 0:02:22]} cxb5 {[%emt 0:00:07]} 19. Bxg7 {[%emt 0:00:29]} Kxg7 {[%emt 0:00:23]} 20. g3 {[%emt 0:01:01]} a4 {[%emt 0:02:00]} 21. Nc5 {[%emt 0:01:33]} Ra7 {[%emt 0:00:08]} 22. Rd6 {[%emt 1:00:55]} Rc7 {[%emt 0:00:43]} 23. Nd3 {[%emt 0:00:00]} b3 {[%emt 0:02:02]} 24. axb3 {[%emt 0:00:00]} axb3 {[%emt 0:00:21]} 25. c3 {[%emt 0:00:00]} Nc6 {[%emt 0:06:13]} 26. Kd2 {[%emt 0:00:00]} b4 {[%emt 0:04:03]} 27. Rc1 {[%emt 0:00:00]} Na5 {[%emt 0:11:07]} 28. Nxb4 {[%emt 0:00:00]} Nc4+ {[%emt 0:00:10]} 0-1

[Event "XX Gran Hotel Bali-B 2023"]
[Site "Benidorm"]
[Date "2023.12.06"]
[Round "7.1"]
[White "Navarro Rico, Lluis"]
[Black "Sempere Domenech, Abel"]
[Result "0-1"]
[ECO "A14"]
[WhiteElo "1937"]
[BlackElo "1981"]
[Annotator "NA"]
[PlyCount "140"]
[EventDate "2023.12.02"]
[EventType "swiss"]
[EventCountry "ESP"]
[SourceTitle "playchess.com"]
[Source "ChessBase"]
[SourceQuality "1"]
[TimeControl "5400+30"]

1. Nf3 {[%emt 0:05:28]} Nf6 {[%emt 0:00:29]} 2. g3 {[%emt 0:00:06]} e6 {[%emt 0:00:09]} 3. c4 {[%emt 0:00:26]} d5 {[%emt 0:00:06]} 4. Bg2 {[%emt 0:00:09]} Be7 {[%emt 0:00:05]} 5. O-O {[%emt 0:00:07]} O-O {[%emt 0:00:16]} 6. b3 {[%emt 0:00:22]} c6 {[%emt 0:03:13]} 7. Bb2 {[%emt 0:01:46]} b6 {[%emt 0:00:15]} 8. Re1 {[%emt 0:03:02]} Bb7 {[%emt 0:03:23]} 9. d4 {[%emt 0:01:10]} Ne4 {[%emt 0:05:51]} 10. Qd3 {[%emt 0:01:38]} Nd7 {[%emt 0:07:19]} 11. Nfd2 {[%emt 0:01:52]} Ndf6 {[%emt 0:10:49]} 12. Nxe4 {[%emt 0:11:20]} dxe4 {[%emt 0:00:21]} 13. Bxe4 {[%emt 0:08:18]} Nxe4 {[%emt 0:04:17]} 14. Qxe4 {[%emt 0:00:04]} Qd7 {[%emt 0:01:07]} 15. Nc3 {[%emt 0:01:09]} Bf6 {[%emt 0:01:00]} 16. Qd3 {[%emt 0:04:06]} Qxd4 {[%emt 0:04:00]} 17. Qxd4 {[%emt 0:02:23]} Bxd4 {[%emt 0:01:14]} 18. e3 {[%emt 0:01:17]} Bf6 {[%emt 0:00:21]} 19. e4 {[%emt 0:00:33]} Bd4 {[%emt 0:04:50]} 20. Rad1 {[%emt 0:00:42]} Rfd8 {[%emt 0:01:08]} 21. Na4 {[%emt 0:03:03]} Bxb2 {[%emt 0:05:16]} 22. Nxb2 {[%emt 0:00:05]} c5 {[%emt 0:04:00]} 23. f3 {[%emt 0:00:06]} g5 {[%emt 0:02:13]} 24. Kf2 {[%emt 0:00:45]} Kf8 {[%emt 0:00:24]} 25. Ke3 {[%emt 0:01:59]} Ke7 {[%emt 0:00:15]} 26. e5 {[%emt 0:01:33]} Rxd1 {[%emt 0:02:40]} 27. Rxd1 {[%emt 0:01:05]} h5 {[%emt 0:00:11]} 28. Nd3 {[%emt 0:01:13]} Rg8 {[%emt 0:03:22]} 29. Nf2 {[%emt 0:03:54]} Bc6 {[%emt 0:04:02]} 30. Rd6 {[%emt 0:01:17]} Bb7 {[%emt 0:01:02]} 31. Rd2 {[%emt 0:00:33]} Bc6 {[%emt 0:00:11]} 32. g4 {[%emt 0:03:45]} Rh8 {[%emt 0:03:09]} 33. Rd6 {[%emt 0:00:33]} Bb7 {[%emt 0:02:04]} 34. Rd3 {[%emt 0:00:20]} Bc6 {[%emt 0:01:13]} 35. gxh5 {[%emt 0:00:23]} Rxh5 {[%emt 0:00:23]} 36. Ng4 {[%emt 0:00:05]} Rh3 {[%emt 0:01:18]} 37. Kf2 {[%emt 0:00:16]} Rh8 {[%emt 0:08:38]} 38. Rd6 {[%emt 0:00:59]} Be8 {[%emt 0:03:12]} 39. Rd2 {[%emt 0:00:41]} Bc6 {[%emt 0:01:44]} 40. Kg3 {[%emt 0:00:09]} Rd8 {[%emt 0:01:55]} 41. Rxd8 {[%emt 0:01:18]} Kxd8 {[%emt 0:00:01]} 42. Nf6 {[%emt 0:03:59]} b5 {[%emt 0:00:15]} 43. Kg4 {[%emt 0:06:51]} Ke7 {[%emt 0:02:24]} 44. cxb5 {[%emt 0:00:16]} Bxb5 {[%emt 0:01:00]} 45. Kxg5 {[%emt 0:00:43]} c4 {[%emt 0:05:38]} 46. bxc4 {[%emt 0:00:05]} Bxc4 {[%emt 0:00:00]} 47. a3 {[%emt 0:00:06]} Kf8 {[%emt 0:00:43]} 48. h4 {[%emt 0:00:07]} Be2 {[%emt 0:00:19]} 49. f4 {[%emt 0:01:47]} Kg7 {[%emt 0:00:53]} 50. h5 {[%emt 0:00:06]} Bd3 {[%emt 0:00:18]} 51. h6+ {[%emt 0:00:06]} Kh8 {[%emt 0:00:25]} 52. Kh4 {[%emt 0:00:21]} a5 {[%emt 0:00:15]} 53. Kg3 {[%emt 0:00:50]} a4 {[%emt 0:00:18]} 54. Kh4 {[%emt 0:00:06]} Bc2 {[%emt 0:03:57]} 55. Kg3 {[%emt 0:00:05]} Bd3 {[%emt 0:00:04]} 56. Kf3 {[%emt 0:00:04]} Bc2 {[%emt 0:00:39]} 57. Ke3 {[%emt 0:00:03]} Bb1 {[%emt 0:00:13]} 58. Kd4 {[%emt 0:00:04]} Bc2 {[%emt 0:00:06]} 59. Kc5 {[%emt 0:00:03]} Bb1 {[%emt 0:00:08]} 60. Kd6 {[%emt 0:00:03]} Bc2 {[%emt 0:00:56]} 61. Ke7 {[%emt 0:00:04]} Bf5 {[%emt 0:00:33]} 62. Kxf7 {[%emt 0:00:32]} Bh3 {[%emt 0:00:04]} 63. Ke7 {[%emt 0:00:12]} Bf5 {[%emt 0:00:13]} 64. Kd6 {[%emt 0:00:03]} Bh3 {[%emt 0:00:21]} 65. Kc5 {[%emt 0:00:48]} Bf5 {[%emt 0:01:38]} 66. Kb4 {[%emt 0:00:04]} Bc2 {[%emt 0:00:17]} 67. f5 {[%emt 0:00:38]} exf5 {[%emt 0:00:35]} 68. e6 {[%emt 0:00:04]} f4 {[%emt 0:00:32]} 69. Kc3 {[%emt 0:00:10]} f3 {[%emt 0:00:32]} 70. e7 {[%emt 0:00:18]} Bg6 {[%emt 0:00:26]} 0-1

[Event "XX Gran Hotel Bali-B 2023"]
[Site "Benidorm"]
[Date "2023.12.06"]
[Round "7.2"]
[White "Talledo Lagos, Cesar Frank"]
[Black "Stanchev, Aleksandar"]
[Result "1/2-1/2"]
[ECO "E24"]
[WhiteElo "1993"]
[BlackElo "1948"]
[Annotator "NA RC"]
[PlyCount "134"]
[EventDate "2023.12.02"]
[EventType "swiss"]
[EventCountry "ESP"]
[SourceTitle "playchess.com"]
[Source "ChessBase"]
[SourceQuality "1"]
[TimeControl "5400+30"]

1. d4 {[%emt 0:00:03]} Nf6 {[%emt 0:00:05]} 2. c4 {[%emt 0:02:35]} e6 {[%emt 0:00:05]} 3. Nc3 {[%emt 0:00:04]} Bb4 {[%emt 0:01:21]} 4. Qc2 {[%emt 0:02:21]} c5 {[%emt 0:04:26]} 5. a3 {[%emt 0:04:06]} Bxc3+ {[%emt 0:00:21]} 6. bxc3 {[%emt 0:01:44]} Nc6 {[%emt 0:00:50]} 7. Nf3 {[%emt 0:02:15]} d6 {[%emt 0:01:15]} 8. e4 {[%emt 0:04:32]} e5 {[%emt 0:00:22]} 9. d5 {[%emt 0:00:10]} Na5 {[%emt 0:01:06]} 10. Bd3 {[%emt 0:00:28]} h6 {[%emt 0:02:23]} 11. O-O {[%emt 0:04:42]} b6 {[%emt 0:01:00]} 12. Nd2 {[%emt 0:03:56]} Ba6 {[%emt 0:08:32]} 13. Nb3 {[%emt 0:03:36]} Nb7 {[%emt 0:19:12]} 14. f4 {[%emt 0:05:22]} exf4 {[%emt 0:01:51]} 15. Bxf4 {[%emt 0:00:16]} Nd7 {[%emt 0:00:07]} 16. Rae1 {[%emt 0:11:40]} Ne5 {[%emt 0:00:52]} 17. Nd2 {[%emt 0:05:26]} O-O {[%emt 0:00:22]} 18. Nf3 {[%emt 0:05:04]} Re8 {[%emt 0:10:57]} 19. Bxe5 {[%emt 0:09:05]} dxe5 {[%emt 0:00:10]} 20. Qf2 {[%emt 0:00:31]} Nd6 {[%emt 0:00:17]} 21. Nh4 {[%emt 0:06:33]} Bc8 {[%emt 0:02:59]} 22. h3 {[%emt 0:03:45]} a6 {[%emt 0:06:58]} 23. g4 {[%emt 0:06:17]} Ra7 {[%emt 0:03:58]} 24. Nf3 {[%emt 0:02:04]} Qe7 {[%emt 0:10:36]} 25. Qg3 {[%emt 0:01:02]} b5 {[%emt 0:00:46]} 26. g5 {[%emt 0:00:47]} bxc4 {[%emt 0:03:39]} 27. gxh6 {[%emt 0:01:05]} g6 {[%emt 0:00:34]} 28. Bc2 {[%emt 0:01:34]} Kh8 {[%emt 0:06:15]} 29. Re2 {[%emt 0:00:32]} f6 {[%emt 0:02:26]} 30. Kh2 {[%emt 0:07:49]} Rg8 {[%emt 0:01:02]} 31. Rg2 {[%emt 0:00:40]} g5 {[%emt 0:03:51]} 32. Qf2 {[%emt 0:00:21]} Rc7 {[%emt 0:01:37]} 33. Nd2 {[%emt 0:00:09]} Rg6 {[%emt 0:00:22]} 34. Bd1 {[%emt 0:01:41]} Rxh6 {[%emt 0:01:06]} 35. Bg4 {[%emt 0:01:22]} Bxg4 {[%emt 0:00:22]} 36. Rxg4 {[%emt 0:00:05]} Qh7 {[%emt 0:00:26]} 37. Kg2 {[%emt 0:01:16]} f5 {[%emt 0:03:25]} 38. exf5 {[%emt 0:03:36]} Rxh3 {[%emt 0:00:02]} 39. Nf3 {[%emt 0:00:53]} e4 {[%emt 0:00:42]} 40. Nxg5 {[%emt 0:00:29]} Rh2+ {[%emt 0:00:20]} 41. Kg3 {[%emt 0:00:11]} Rxf2 {[%emt 0:01:05]} 42. Rxf2 {[%emt 0:00:10]} Nxf5+ {[%emt 0:00:43]} 43. Kf4 {[%emt 0:00:26]} e3 {[%emt 0:01:34]} 44. Re2 {[%emt 0:00:51]} Qh5 {[%emt 0:00:46]} 45. Reg2 {[%emt 0:00:49]} Nh4 {[%emt 0:00:34]} 46. Rh2 {[%emt 0:00:18]} Ng6+ {[%emt 0:01:06]} 47. Kg3 {[%emt 0:00:10]} Qxh2+ {[%emt 0:00:08]} 48. Kxh2 {[%emt 0:00:01]} Rd7 {[%emt 0:00:52]} 49. d6 {[%emt 0:00:39]} Kg7 {[%emt 0:00:35]} 50. Ne4 {[%emt 0:01:05]} Kf7 {[%emt 0:00:11]} 51. Kg2 {[%emt 0:00:12]} Rd8 {[%emt 0:00:35]} 52. Kf1 {[%emt 0:00:16]} Ne5 {[%emt 0:00:19]} 53. Rf4+ {[%emt 0:00:07]} Ke6 {[%emt 0:00:36]} 54. Nxc5+ {[%emt 0:00:06]} Kd5 {[%emt 0:00:20]} 55. Nxa6 {[%emt 0:00:45]} Rxd6 {[%emt 0:00:26]} 56. Rd4+ {[%emt 0:01:13]} Kc6 {[%emt 0:00:32]} 57. Nb4+ {[%emt 0:00:12]} Kc5 {[%emt 0:00:24]} 58. Rxd6 {[%emt 0:00:12]} Kxd6 {[%emt 0:00:05]} 59. Ke2 {[%emt 0:00:12]} Ng4 {[%emt 0:01:07]} 60. Nc2 {[%emt 0:00:07]} Kc5 {[%emt 0:00:15]} 61. Nxe3 {[%emt 0:00:06]} Nf6 {[%emt 0:00:24]} 62. Kf3 {[%emt 0:00:11]} Nd7 {[%emt 0:00:26]} 63. a4 {[%emt 0:00:31]} Nb6 {[%emt 0:01:00]} 64. a5 {[%emt 0:00:40]} Na4 {[%emt 0:00:05]} 65. Nxc4 {[%emt 0:00:25]} Kxc4 {[%emt 0:00:08]} 66. a6 {[%emt 0:00:10]} Kxc3 {[%emt 0:00:12]} 67. Ke4 {[%emt 0:00:13]} Nc5+ {[%emt 0:00:05]} 1/2-1/2

[Event "XX Gran Hotel Bali-B 2023"]
[Site "Benidorm"]
[Date "2023.12.06"]
[Round "7.3"]
[White "Conde Chamizo, Pablo"]
[Black "Vladut, Matei"]
[Result "1/2-1/2"]
[ECO "D45"]
[WhiteElo "1905"]
[BlackElo "1989"]
[Annotator "NA"]
[PlyCount "93"]
[EventDate "2023.12.02"]
[EventType "swiss"]
[EventCountry "ESP"]
[SourceTitle "playchess.com"]
[Source "ChessBase"]
[SourceQuality "1"]
[TimeControl "5400+30"]

1. c4 {[%emt 0:00:02]} c6 {[%emt 0:00:19]} 2. d4 {[%emt 0:00:10]} d5 {[%emt 0:00:04]} 3. Nc3 {[%emt 0:00:52]} e6 {[%emt 0:00:06]} 4. e3 {[%emt 0:01:03]} Nf6 {[%emt 0:00:19]} 5. Nf3 {[%emt 0:00:08]} Nbd7 {[%emt 0:01:03]} 6. cxd5 {[%emt 0:01:55]} exd5 {[%emt 0:01:40]} 7. Bd3 {[%emt 0:00:32]} Bd6 {[%emt 0:00:04]} 8. Qc2 {[%emt 0:01:53]} O-O {[%emt 0:00:17]} 9. O-O {[%emt 0:00:23]} c5 {[%emt 0:00:42]} 10. dxc5 {[%emt 0:07:20]} Nxc5 {[%emt 0:00:17]} 11. Rd1 {[%emt 0:00:59]} Be6 {[%emt 0:15:54]} 12. Nd4 {[%emt 0:15:02]} Rc8 {[%emt 0:02:48]} 13. Qb1 {[%emt 0:01:40]} Bb8 {[%emt 0:07:50]} 14. Bf5 {[%emt 0:05:08]} Qc7 {[%emt 0:06:20]} 15. f4 {[%emt 0:09:15]} Rfe8 {[%emt 0:00:16]} 16. b4 {[%emt 0:05:42]} Bxf5 {[%emt 0:14:08]} 17. Nxf5 {[%emt 0:03:13]} Nce4 {[%emt 0:03:20]} 18. Nxe4 {[%emt 0:01:26]} Rxe4 {[%emt 0:02:31]} 19. a3 {[%emt 0:12:32]} Qb6 {[%emt 0:01:36]} 20. Rxd5 {[%emt 0:01:43]} Qe6 {[%emt 0:07:26]} 21. Rb5 {[%emt 0:09:29]} a6 {[%emt 0:00:53]} 22. Nxg7 {[%emt 0:00:06]} Kxg7 {[%emt 0:01:04]} 23. Rg5+ {[%emt 0:00:15]} Kf8 {[%emt 0:00:36]} 24. Bb2 {[%emt 0:00:07]} Rxe3 {[%emt 0:01:35]} 25. Bd4 {[%emt 0:02:18]} Bxf4 {[%emt 0:04:28]} 26. Rc5 {[%emt 0:00:07]} Rd8 {[%emt 0:00:37]} 27. Bxe3 {[%emt 0:02:22]} Bxe3+ {[%emt 0:00:10]} 28. Kh1 {[%emt 0:00:13]} Bxc5 {[%emt 0:00:03]} 29. bxc5 {[%emt 0:00:06]} Qe4 {[%emt 0:04:02]} 30. Qb6 {[%emt 0:00:42]} Qd4 {[%emt 0:00:23]} 31. Rf1 {[%emt 0:00:06]} Kg7 {[%emt 0:03:46]} 32. Qxb7 {[%emt 0:00:26]} Qc4 {[%emt 0:05:31]} 33. Qf3 {[%emt 0:01:08]} Qd4 {[%emt 0:06:30]} 34. c6 {[%emt 0:01:09]} Rc8 {[%emt 0:00:17]} 35. h3 {[%emt 0:03:38]} Qd6 {[%emt 0:00:52]} 36. Rc1 {[%emt 0:00:11]} Rc7 {[%emt 0:00:49]} 37. Qc3 {[%emt 0:03:14]} a5 {[%emt 0:04:28]} 38. Qxa5 {[%emt 0:02:57]} Rxc6 {[%emt 0:00:03]} 39. Qg5+ {[%emt 0:00:44]} Kf8 {[%emt 0:01:37]} 40. Qh6+ {[%emt 0:02:15]} Ke7 {[%emt 0:00:28]} 41. Re1+ {[%emt 0:00:06]} Kd7 {[%emt 0:00:12]} 42. Qg7 {[%emt 0:00:06]} Qd5 {[%emt 0:00:43]} 43. Qf8 {[%emt 0:00:12]} Re6 {[%emt 0:00:29]} 44. Qxf7+ {[%emt 0:00:35]} Kd6 {[%emt 0:00:18]} 45. Qf8+ {[%emt 0:02:14]} Kd7 {[%emt 0:01:52]} 46. Qf7+ {[%emt 0:00:56]} Kd6 {[%emt 0:00:05]} 47. Qf8+ {[%emt 0:00:12]} 1/2-1/2